{"text_format":"3","workbook":"xlsx","n_sheets":7,"sheets":["Índice","CCA","CC1","CC2","Plan2","BP Prudencial","PL Adm"],"not_rendered":{"images":2,"external_links":2,"defined_names":195},"read":"whole","date_system":"1900"}

{"sheet":"Índice","index":0,"n_rows":16,"n_cols":4,"rows_kept":16,"merged":[[0,2,3,3],[7,1,7,3],[11,2,11,3]]}
[null,null,"Anexos do Relatório de Gerenciamento de Riscos"]
[]
[]
[]
[{"$nulls":3},"Clique no item para visualizar a planilha"]
[]
[]
[null,"Tabelas de Composição de Capital"]
[]
[]
[]
[null,"CCA","Principais características dos instrumentos que compõem o Patrimônio de Referência –  PR"]
[]
[null,"CC1","Composição do Patrimônio de Referência – PR"]
[]
[null,"CC2","Conciliação do Patrimônio de Referência (PR) com o balanço patrimonial"]

{"sheet":"CCA","index":1,"n_rows":19,"n_cols":47,"rows_kept":19,"merged":[[5,1,5,18],[9,1,9,2],[9,3,9,5],[9,7,9,9],[9,10,9,12],[9,13,9,15],[9,16,9,18],[9,19,9,21],[9,23,9,46]]}
[]
[]
[]
[]
[]
[]
[null,"Principais características dos instrumentos que compõem o Patrimônio de Referência - PR (CCA)",{"$nulls":44},"Índice"]
[]
[null,"R$ Mil",null,1,2,3,null,4,5,null,6,7,8,null,9,null,10,11,12,13,14,15,16,17,null,18,19,20,21,22,23,24,25,26,27,28,29,30,31,null,32,33,null,"34a",35,36,37]
[null,"Tipo",null,"Característica",{"$nulls":19},"Remuneração / Dividendos"]
[null,"Número da linha",null,"Emissor","Identificador único","Lei aplicável ao instrumento",null,"Classificação do instrumento como componente do PR durante o tratamento temporário de que trata o art. 28 da Resolução nº 4.192, de 2013.","Classificação do instrumento como componente do PR após o tratamento temporário de que trata a linha anterior",null,"Escopo da elegibilidade do instrumento","Tipo de instrumento","Valor reconhecido no PR",null,"Valor de face do instrumento",null,"Classificação contábil","Data original de emissão","Perpétuo ou com vencimento","Data original de vencimento","Opção de resgate ou recompra","(1) Data de resgate ou recompra \n(2) Datas de resgate ou recompra condicionadas \n(3) Valor de resgate ou recompra","Datas de resgate ou recompra subsequentes, se aplicável","Remuneração ou dividendos fixos ou variáveis",null,"Taxa de remuneração e índice referenciado","Possibilidade de suspensão de pagamento de dividendos","Completa discricionariedade, discricionariedade parcial ou mandatória","Existência de cláusulas que alterem prazos ou condições de remuneração pactuados ou outro incentivo para resgate","Cumulativo ou não cumulativo","Conversível ou não conversível","Se conversível, em quais situações","Se conversível, totalmente ou parcialmente","Se conversível, taxa de conversão","Se conversível, conversão obrigatória ou opcional","Se conversível, especificar para qual tipo de instrumento","Se conversível, especificar o emissor do instrumento para o qual pode ser convertido","Características para a extinção do instrumento","Se extinguível, em quais situações",null,"Se extinguível, totalmente ou parcialmente","Se extinguível, permanentemente ou temporariamente",null,"Tipo de subordinação","Posição na hierarquia de subordinação em caso de liquidação","Possui características que não serão aceitas após o tratamento temporário de que trata o art. 28 da Resolução n° 4.192, de 2013","Se sim, especificar as características de que trata a linha anterior"]
[null,1,null,"Sinosserra Financeira S/A","LFSN2100E1Y","Lei nº 12.249, de 11 de Junho de 2010  / Resolução CMN n° 4.955 de 21/10/2021 / Resolução CMN n° 5.007 de 24/3/2022",null,"Nível II","Não elegível",null,"Conglomerado","Letra financeira",{"v":274587.02,"d":"274,587.02"},null,{"v":833666.67,"d":"833,666.67"},null,"Passivo – custo amortizado","2021-12-23","Com vencimento","2026-12-23","Não","N/A","N/A","Fixo",null,"PRE 15% a.a","Não","Mandatório","Não","Cumulativo","Não conversível","N/A","N/A","N/A","N/A","N/A","N/A","Sim","Serão extintos nas situações previstas no art. 20, inciso X, da Resolução CMN 4.192, de 01/03/2013",null,"Sempre será extinto na sua totalidade","Permanente",null,"Contratual","Subordinado ao pagamento dos demais passivos da instituição emitente, com exceção do pagamento dos elementos que compõem o Capital Principal e o Capital Complementar.","Não","N/A"]
[null,2,null,"Sinosserra Financeira S/A","LFSN2100E20","Lei nº 12.249, de 11 de Junho de 2010  / Resolução CMN n° 4.955 de 21/10/2021 / Resolução CMN n° 5.007 de 24/3/2022",null,"Nível II","Não elegível",null,"Conglomerado","Letra financeira",{"v":197623.60400000002,"d":"197,623.60"},null,{"v":600000,"d":"600,000.00"},null,"Passivo – custo amortizado","2021-12-23","Com vencimento","2026-12-23","Não","N/A","N/A","Fixo",null,"PRE 15% a.a","Não","Mandatório","Não","Cumulativo","Não conversível","N/A","N/A","N/A","N/A","N/A","N/A","Sim","Serão extintos nas situações previstas no art. 20, inciso X, da Resolução CMN 4.192, de 01/03/2014",null,"Sempre será extinto na sua totalidade","Permanente",null,"Contratual","Subordinado ao pagamento dos demais passivos da instituição emitente, com exceção do pagamento dos elementos que compõem o Capital Principal e o Capital Complementar.","Não","N/A"]
[null,3,null,"Sinosserra Financeira S/A","LFSN2100DWH","Lei nº 12.249, de 11 de Junho de 2010  / Resolução CMN n° 4.955 de 21/10/2021 / Resolução CMN n° 5.007 de 24/3/2022",null,"Nível II","Não elegível",null,"Conglomerado","Letra financeira",{"v":205937.85600000003,"d":"205,937.86"},null,{"v":625000,"d":"625,000.00"},null,"Passivo – custo amortizado","2021-12-22","Com vencimento","2026-12-22","Não","N/A","N/A","Fixo",null,"PRE 15% a.a","Não","Mandatório","Não","Cumulativo","Não conversível","N/A","N/A","N/A","N/A","N/A","N/A","Sim","Serão extintos nas situações previstas no art. 20, inciso X, da Resolução CMN 4.192, de 01/03/2015",null,"Sempre será extinto na sua totalidade","Permanente",null,"Contratual","Subordinado ao pagamento dos demais passivos da instituição emitente, com exceção do pagamento dos elementos que compõem o Capital Principal e o Capital Complementar.","Não","N/A"]
[null,4,null,"Sinosserra Financeira S/A","LFSN2100DLB","Lei nº 12.249, de 11 de Junho de 2010  / Resolução CMN n° 4.955 de 21/10/2021 / Resolução CMN n° 5.007 de 24/3/2022",null,"Nível II","Não elegível",null,"Conglomerado","Letra financeira",{"v":197777.11000000002,"d":"197,777.11"},null,{"v":600000,"d":"600,000.00"},null,"Passivo – custo amortizado","2021-12-21","Com vencimento","2026-12-21","Não","N/A","N/A","Fixo",null,"PRE 15% a.a","Não","Mandatório","Não","Cumulativo","Não conversível","N/A","N/A","N/A","N/A","N/A","N/A","Sim","Serão extintos nas situações previstas no art. 20, inciso X, da Resolução CMN 4.192, de 01/03/2016",null,"Sempre será extinto na sua totalidade","Permanente",null,"Contratual","Subordinado ao pagamento dos demais passivos da instituição emitente, com exceção do pagamento dos elementos que compõem o Capital Principal e o Capital Complementar.","Não","N/A"]
[null,5,null,"Sinosserra Financeira S/A","LFSN2100DFU","Lei nº 12.249, de 11 de Junho de 2010  / Resolução CMN n° 4.955 de 21/10/2021 / Resolução CMN n° 5.007 de 24/3/2022",null,"Nível II","Não elegível",null,"Conglomerado","Letra financeira",{"v":274690.428,"d":"274,690.43"},null,{"v":833333.33,"d":"833,333.33"},null,"Passivo – custo amortizado","2021-12-21","Com vencimento","2026-12-21","Não","N/A","N/A","Fixo",null,"PRE 15% a.a","Não","Mandatório","Não","Cumulativo","Não conversível","N/A","N/A","N/A","N/A","N/A","N/A","Sim","Serão extintos nas situações previstas no art. 20, inciso X, da Resolução CMN 4.192, de 01/03/2017",null,"Sempre será extinto na sua totalidade","Permanente",null,"Contratual","Subordinado ao pagamento dos demais passivos da instituição emitente, com exceção do pagamento dos elementos que compõem o Capital Principal e o Capital Complementar.","Não","N/A"]
[null,6,null,"Sinosserra Financeira S/A","LFSN2100DFT","Lei nº 12.249, de 11 de Junho de 2010  / Resolução CMN n° 4.955 de 21/10/2021 / Resolução CMN n° 5.007 de 24/3/2022",null,"Nível II","Não elegível",null,"Conglomerado","Letra financeira",{"v":123610.694,"d":"123,610.69"},null,{"v":375000,"d":"375,000.00"},null,"Passivo – custo amortizado","2021-12-21","Com vencimento","2026-12-21","Não","N/A","N/A","Fixo",null,"PRE 15% a.a","Não","Mandatório","Não","Cumulativo","Não conversível","N/A","N/A","N/A","N/A","N/A","N/A","Sim","Serão extintos nas situações previstas no art. 20, inciso X, da Resolução CMN 4.192, de 01/03/2018",null,"Sempre será extinto na sua totalidade","Permanente",null,"Contratual","Subordinado ao pagamento dos demais passivos da instituição emitente, com exceção do pagamento dos elementos que compõem o Capital Principal e o Capital Complementar.","Não","N/A"]
[null,7,null,"Sinosserra Financeira S/A","LFSN2100DLA","Lei nº 12.249, de 11 de Junho de 2010  / Resolução CMN n° 4.955 de 21/10/2021 / Resolução CMN n° 5.007 de 24/3/2022",null,"Nível II","Não elegível",null,"Conglomerado","Letra financeira",{"v":274580.554,"d":"274,580.55"},null,{"v":833000,"d":"833,000.00"},null,"Passivo – custo amortizado","2021-12-21","Com vencimento","2026-12-21","Não","N/A","N/A","Fixo",null,"PRE 15% a.a","Não","Mandatório","Não","Cumulativo","Não conversível","N/A","N/A","N/A","N/A","N/A","N/A","Sim","Serão extintos nas situações previstas no art. 20, inciso X, da Resolução CMN 4.192, de 01/03/2019",null,"Sempre será extinto na sua totalidade","Permanente",null,"Contratual","Subordinado ao pagamento dos demais passivos da instituição emitente, com exceção do pagamento dos elementos que compõem o Capital Principal e o Capital Complementar.","Não","N/A"]
[null,8,null,"Sinosserra Financeira S/A","LFSN2100E1Z","Lei nº 12.249, de 11 de Junho de 2010  / Resolução CMN n° 4.955 de 21/10/2021 / Resolução CMN n° 5.007 de 24/3/2022",null,"Nível II","Não elegível",null,"Conglomerado","Letra financeira",{"v":98811.80200000001,"d":"98,811.80"},null,{"v":300000,"d":"300,000.00"},null,"Passivo – custo amortizado","2021-12-23","Com vencimento","2026-12-23","Não","N/A","N/A","Fixo",null,"PRE 15% a.a","Não","Mandatório","Não","Cumulativo","Não conversível","N/A","N/A","N/A","N/A","N/A","N/A","Sim","Serão extintos nas situações previstas no art. 20, inciso X, da Resolução CMN 4.192, de 01/03/2020",null,"Sempre será extinto na sua totalidade","Permanente",null,"Contratual","Subordinado ao pagamento dos demais passivos da instituição emitente, com exceção do pagamento dos elementos que compõem o Capital Principal e o Capital Complementar.","Não","N/A"]

{"sheet":"CC1","index":2,"n_rows":98,"n_cols":5,"rows_kept":98}
[]
[]
[]
[]
[]
[]
[null,"Composição do Patrimônio de Referência - PR (CC1)",null,null,"Índice"]
[null,"jun/2025",null,"a","b"]
[null,"Número\nda linha","Capital Principal: instrumentos e reservas","Valor (R$ mil)","Referência do\nbalanço do\nconglomerado"]
[null,1,"Instrumentos Elegíveis ao Capital Principal",{"$f":"20000000/1000","v":{"v":20000,"d":"20,000"}},"(a)"]
[null,2,"Reservas de lucros",{"$f":"(-1799466.67)/1000","v":{"v":-1799.46667,"d":"(1,799)"}},"(b)"]
[null,3,"Outras receitas e outras reservas",0,"(c)+(d)+(e)"]
[null,5,"Participação de não controladores nos instrumentos emitidos por subsidiárias do conglomerado prudencial e elegíveis ao seu Capital Principal",{"$f":"29922943.5/1000","v":{"v":29922.9435,"d":"29,923"}}]
[null,6,"Capital Principal antes dos ajustes prudenciais",{"$f":"SUM(D10:D13)","v":{"v":48123.47683,"d":"48,123"}}]
[null,"Número\nda linha","Capital Principal: ajustes prudenciais","Valor (R$ mil)","Referência do\nbalanço do\nconglomerado"]
[null,7,"Ajustes prudenciais relativos a apreçamentos de instrumentos financeiros (PVA)",0]
[null,8,"Ágios pagos na aquisição de investimentos com fundamento em expectativa de rentabilidade futura",0]
[null,9,"Ativos intangíveis",{"$f":"341378.4/1000","v":{"v":341.3784,"d":"341"}}]
[null,10,"Créditos tributários decorrentes de prejuízos fiscais e de base negativa de Contribuição Social sobre o Lucro Líquido e os originados dessa contribuição relativos a períodos de apuração encerrados até 31 de dezembro de 1998",0]
[null,11,"Ajustes relativos ao valor de mercado dos instrumentos financeiros derivativos utilizados para hedge de fluxo de caixa de itens protegidos cujos ajustes de marcação a mercado não são registrados contabilmente",0]
[null,15,"Ativos atuariais relacionados a fundos de pensão de benefício definido",0]
[null,16,"Ações ou outros instrumentos de emissão própria autorizados a compor o Capital Principal da instituição ou conglomerado, adquiridos diretamente, indiretamente ou de forma sintética",0]
[null,17,"Valor total das deduções relativas às aquisições recíprocas de Capital Principal",0]
[null,18,"Valor total das deduções relativas às participações líquidas não significativas em Capital Principal de instituições autorizadas a funcionar pelo Banco Central do Brasil e de instituições financeiras no exterior não consolidadas e em capital social de empresas assemelhadas a instituições financeiras não consolidadas, sociedades seguradoras, resseguradoras, de capitalização e entidades abertas de previdência complementar",0]
[null,19,"Valor total das deduções relativas às participações líquidas significativas em Capital Principal de instituições autorizadas a funcionar pelo Banco Central do Brasil e de instituições financeiras no exterior não consolidadas e em capital social de empresas assemelhadas a instituições financeiras não consolidadas, sociedades seguradoras, resseguradoras, de capitalização e entidades abertas de previdência complementar, que exceda 10% do valor do Capital Principal da própria instituição ou conglomerado, desconsiderando deduções específicas",0]
[null,21,"Valor total das deduções relativas aos créditos tributários decorrentes de diferenças temporárias que dependam de geração de lucros ou receitas tributáveis futuras para sua realização, que exceda 10% do Capital Principal da própria instituição ou conglomerado, desconsiderando deduções específicas"]
[null,22,"Valor que excede, de forma agregada, 15% do Capital Principal da própria instituição ou conglomerado",0]
[null,23,"do qual: oriundo de participações líquidas significativas em Capital Principal de instituições autorizadas a funcionar pelo Banco Central do Brasil e de instituições financeiras no exterior não consolidadas e em capital social de empresas assemelhadas a instituições financeiras não consolidadas, de sociedades seguradoras, resseguradoras, de capitalização e de entidades abertas de previdência complementar",0]
[null,25,"do qual: oriundo de créditos tributários decorrentes de diferenças temporárias que dependam de geração de lucros ou receitas tributáveis futuras para sua realização",0]
[null,26,"Ajustes regulatórios nacionais",0]
[null,"26.a","Ativos permanentes diferidos",0]
[null,"26.b","Investimentos em dependências, instituições financeiras controladas no exterior ou entidades não financeiras que componham o conglomerado, em relação às quais o Banco Central do Brasil não tenha acesso a informações, dados e documentos",0]
[null,"26.d","Aumento de capital social não autorizado",0]
[null,"26.e","Excedente do valor ajustado de Capital Principal",0]
[null,"26.f","Depósito para suprir deficiência de capital",0]
[null,"26.g","Montante dos ativos intangíveis constituídos antes da entrada em vigor da Resolução nº 4.192, de 2013",0]
[null,"26.h","Excesso dos recursos aplicados no Ativo Permanente",0]
[null,"26.i","Destaque do PR, conforme Resolução nº 4.589, de 29 de junho de 2017",0]
[null,"26.j","Outras diferenças residuais relativas à metodologia de apuração do Capital Principal para fins regulatórios",0]
[null,27,"Dedução aplicada ao Capital Principal decorrente de insuficiência de Capital Complementar e de Nível II para cobrir as respectivas deduções nesses componentes",0]
[null,28,"Total de deduções regulatórias ao Capital Principal",{"$f":"SUM(D16:D40)","v":{"v":341.3784,"d":"341"}}]
[null,29,"Capital Principal",{"$f":"D14-D41","v":{"v":47782.09843,"d":"47,782"}}]
[null,"Número\nda linha","Capital Complementar: instrumentos","Valor (R$ mil)"]
[null,30,"Instrumentos elegíveis ao Capital Complementar",0]
[null,31,"dos quais: classificados como capital social conforme as regras contábeis",0]
[null,32,"dos quais: classificados como passivo conforme as regras contábeis",0]
[null,33,"Instrumentos autorizados a compor o Capital Complementar antes da entrada em vigor da Resolução nº 4.192, de 2013",0]
[null,34,"Participação de não controladores nos instrumentos emitidos por subsidiárias da instituição ou conglomerado e elegíveis ao seu Capital Complementar",0]
[null,35,"da qual: instrumentos emitidos por subsidiárias antes da entrada em vigor da Resolução nº 4.192, de 2013",0]
[null,36,"Capital Complementar antes das deduções regulatórias",0]
[null,"Número\nda linha","Capital Complementar: deduções regulatórias","Valor (R$ mil)"]
[null,37,"Ações ou outros instrumentos de emissão própria autorizados a compor o Capital Complementar da instituição ou conglomerado, adquiridos diretamente, indiretamente ou de forma sintética",0]
[null,38,"Valor total das deduções relativas às aquisições recíprocas de Capital Complementar",0]
[null,39,"Valor total das deduções relativas aos investimentos líquidos não significativos em Capital Complementar de instituições autorizadas a funcionar pelo Banco Central do Brasil e de instituições financeiras no exterior não consolidadas",0]
[null,40,"Valor total das deduções relativas aos investimentos líquidos significativos em Capital Complementar de instituições autorizadas a funcionar pelo Banco Central do Brasil e de instituições financeiras no exterior não consolidadas",0]
[null,41,"Ajustes regulatórios nacionais",0]
[null,"41.b","Participação de não controladores no Capital Complementar",0]
[null,"41.c","Outras diferenças residuais relativas à metodologia de apuração do Capital Complementar para fins regulatórios",0]
[null,42,"Dedução aplicada ao Capital Complementar decorrente de insuficiência de Nível II para cobrir a dedução nesse componente",0]
[null,43,"Total de deduções regulatórias ao Capital Complementar",{"$f":"SUM(D52:D59)","v":0}]
[null,44,"Capital Complementar",{"$f":"D50-D60","v":0}]
[null,45,"Nível I",{"$f":"D42+D61","v":{"v":47782.09843,"d":"47,782"}}]
[null,"Número\nda linha","Nível II: instrumentos","Valor (R$ mil)","Referência do\nbalanço do\nconglomerado"]
[null,46,"Instrumentos elegíveis ao Nível II",{"$f":"1647619.07/1000","v":{"v":1647.61907,"d":"1,648"}}]
[null,47,"Instrumentos autorizados a compor o Nível II antes da entrada em vigor da Resolução nº 4.192, de 2013",0]
[null,48,"Participação de não controladores nos instrumentos emitidos por subsidiárias do conglomerado e elegíveis ao seu Nível II",0]
[null,49,"da qual: instrumentos emitidos por subsidiárias antes da entrada em vigor da Resolução nº 4.192, de 2013",0]
[null,51,"Nível II antes das deduções regulatórias",{"$f":"SUM(D64:D67)","v":{"v":1647.61907,"d":"1,648"}}]
[null,"Número\nda linha","Nível II: deduções regulatórias","Valor (R$ mil)","Referência do\nbalanço do\nconglomerado"]
[null,52,"Ações ou outros instrumentos de emissão própria, autorizados a compor o Nível II da instituição ou conglomerado, adquiridos diretamente, indiretamente ou de forma sintética",0]
[null,53,"Valor total das deduções relativas às aquisições recíprocas de Nível II",0]
[null,54,"Valor total das deduções relativas aos investimentos líquidos não significativos em instrumentos de Nível II e em instrumentos reconhecidos como TLAC emitidos por instituições autorizadas a funcionar pelo Banco Central do Brasil ou por instituições financeiras no exterior não consolidadas",0]
[null,55,"Valor total das deduções relativas aos investimentos líquidos significativos em instrumentos de Nível II e em instrumentos reconhecidos como TLAC emitidos por instituições autorizadas a funcionar pelo Banco Central do Brasil ou por instituições financeiras no exterior não consolidadas",0]
[null,56,"Ajustes regulatórios nacionais",0]
[null,"56.b","Participação de não controladores no Nível II",0]
[null,"56.c","Outras diferenças residuais relativas à metodologia de apuração do Nível II para fins regulatórios",0]
[null,57,"Total de deduções regulatórias ao Nível II",{"$f":"SUM(D70:D76)","v":0}]
[null,58,"Nível II",{"$f":"D68-D77","v":{"v":1647.61907,"d":"1,648"}}]
[null,59,"Patrimônio de Referência",{"$f":"D62+D78","v":{"v":49429.7175,"d":"49,430"}}]
[null,60,"Total de ativos ponderados pelo risco (RWA)",{"$f":"234284827.13/1000","v":{"v":234284.82713,"d":"234,285"}}]
[null,"Número\nda linha","Índices de Basileia e Adicional de Capital Principal","%"]
[null,61,"Índice de Capital Principal (ICP)",{"$f":"D42/D80","v":{"v":0.2039487533842158,"d":"20.4%"}}]
[null,62,"Índice de Nível I (IN1)",{"$f":"D62/D80","v":{"v":0.2039487533842158,"d":"20.4%"}}]
[null,63,"Índice de Basileia (IB)",{"$f":"D79/D80","v":{"v":0.2109813004346732,"d":"21.1%"}}]
[null,64,"Percentual do adicional de Capital Principal (em relação ao RWA)",{"$f":"SUM(D86:D88)","v":{"v":0.025,"d":"2.5%"}}]
[null,65,"do qual: adicional para conservação de capital - ACPConservação",{"v":0.025,"d":"2.5%"}]
[null,66,"do qual: adicional contracíclico - ACPContracíclico",{"v":0,"d":"0.0%"}]
[null,67,"do qual: Adicional de Importância Sistêmica de Capital Principal - ACPSistêmico",{"v":0,"d":"0.0%"}]
[null,68,"Capital Principal excedente ao montante utilizado para cumprimento dos requerimentos de capital, como proporção do RWA (%)"]
[null,"Número\nda linha","Valores abaixo do limite de dedução antes da aplicação de fator de ponderação de risco","Valor (R$ mil)","Referência do\nbalanço do\nconglomerado"]
[null,72,"Valor total, sujeito à ponderação de risco, das participações não significativas em Capital Principal de instituições autorizadas a funcionar pelo Banco Central do Brasil e de instituições financeiras no exterior não consolidas e em capital social de empresas assemelhadas a instituições financeiras não consolidadas, sociedades seguradoras, resseguradoras, de capitalização e entidades abertas de previdência complementar, bem como dos investimentos não significativos em Capital Complementar, em instrumentos de Nível II e em instrumentos reconhecidos como TLAC emitidos por instituições financeiras autorizadas a funcionar pelo Banco Central do Brasil ou por instituições financeiras no exterior não consolidadas",0]
[null,73,"Valor total, sujeito à ponderação de risco, das participações significativas em Capital Principal de instituições autorizadas a funcionar pelo Banco Central do Brasil e de instituições financeiras no exterior não consolidas e em capital social de empresas assemelhadas a instituições financeiras não consolidadas, sociedades seguradoras, resseguradoras, de capitalização e entidades abertas de previdência complementar",0]
[null,75,"Valor total, sujeito à ponderação de risco, de créditos tributários decorrentes de diferenças temporárias que dependam de geração de lucros ou receitas tributáveis futuras para sua realização, não deduzidos do Capital Principal",0]
[null,"Número\nda linha","Instrumentos autorizados a compor o PR antes da entrada em vigor da Resolução nº 4.192, de 2013 (aplicável entre 1º de janeiro de 2018 e 1º de janeiro de 2022)","Valor (R$ mil)","Referência do\nbalanço do\nconglomerado"]
[null,82,"Limite atual para os instrumentos autorizados a compor o Capital Complementar antes da entrada em vigor da Resolução nº 4.192, de 2013",0]
[null,83,"Valor excluído do Capital Complementar devido ao limite da linha 82",0]
[null,84,"Limite atual para os instrumentos autorizados a compor o Nível II antes da entrada em vigor da Resolução nº 4.192, de 2013",0]
[null,85,"Valor excluído do Nível II devido ao limite da linha 84",0]

{"sheet":"CC2","index":3,"n_rows":70,"n_cols":7,"rows_kept":70,"merged":[[9,1,9,4],[36,2,37,2],[36,3,37,3],[36,4,37,4],[65,2,66,2],[65,3,66,3]]}
[{"$nulls":5},"Financeira","Conglomerado"]
[{"$nulls":5},{"v":350194493.36,"d":"350,194,493.36"},{"v":1075252241.98,"d":"1,075,252,241.98"}]
[{"$nulls":5},{"v":-188487448.02,"d":"-188,487,448.02"},{"v":-886540222.22,"d":"-886,540,222.22"}]
[{"$nulls":5},{"$f":"SUM(F2:F3)","v":{"v":161707045.34,"d":"161,707,045.34"}},{"$f":"SUM(G2:G3)","v":{"v":188712019.76,"d":"188,712,019.76"}}]
[]
[]
[null,"Conciliação do Patrimônio de Referência (PR) com o balanço patrimonial (CC2)",null,null,"Índice"]
[]
[]
[null,"Balanço Patrimonial Consolidado - Junho/2025"]
[]
[null,"R$ mil","a","b","c"]
[null,"ATIVO","Valores do balanço patrimonial\nno final do período","Valores considerados para fins da regulamentação prudencial\nno final do período","Referência no balanço\ndo conglomerado"]
[null,"Caixa e equivalentes a caixa",{"$f":"1247215.19/1000","v":{"v":1247.21519,"d":"1,247"}},{"$f":"1299083.96/1000","v":{"v":1299.08396,"d":"1,299"}}]
[null,"Instrumentos financeiros",{"$f":"SUM(C16:C21)","v":{"v":195774.00597,"d":"195,774"}},{"$f":"SUM(D16:D21)","v":{"v":198664.93509,"d":"198,665"}}]
[null,"Aplicações interfinanceiras de liquidez"]
[null,"Depósitos compulsórios no Banco Central do Brasil",0,0]
[null,"Títulos e valores mobiliários",{"$f":"23587166.5/1000","v":{"v":23587.1665,"d":"23,587"}},{"$f":"26478095.62/1000","v":{"v":26478.09562,"d":"26,478"}}]
[null,"Instrumentos financeiros derivativos",0,0]
[null,"Operações de crédito",{"$f":"167186839.47/1000","v":{"v":167186.83947,"d":"167,187"}},{"$f":"167186839.47/1000","v":{"v":167186.83947,"d":"167,187"}}]
[null,"Outros Instrumentos financeiros",{"$f":"5000000/1000","v":{"v":5000,"d":"5,000"}},{"$f":"5000000/1000","v":{"v":5000,"d":"5,000"}}]
[null,"Operações de arrendamento mercantil",null,0]
[null,"Provisões para perdas esperadas associadas ao risco de crédito",null,{"$f":"SUM(D24:D26)","v":0}]
[null,"Operações de crédito"]
[null,"Operações de arrendamento mercantil"]
[null,"Outros créditos"]
[null,"Créditos tributários",{"$f":"(4132448.2+195739.14)/1000","v":{"v":4328.1873399999995,"d":"4,328"}},{"$f":"(4257796.45+722233.16+312195.5)/1000","v":{"v":5292.22511,"d":"5,292"}}]
[null,"Investimentos em participações em coligadas e controladas"]
[null,"Imobilizado de uso",{"$f":"(211154.86)/1000","v":{"v":211.15485999999999,"d":"211"}},{"$f":"(3220+1029583.99+162000)/1000","v":{"v":1194.8039899999999,"d":"1,195"}}]
[null,"Intangível",{"$f":"(651981.45+60000)/1000","v":{"v":711.98145,"d":"712"}},{"$f":"(663828.12+8350+60000)/1000","v":{"v":732.17812,"d":"732"}}]
[null,"Depreciações e amortizações",{"$f":"SUM(C32:C33)","v":{"v":-502.69366999999994,"d":"(503)"}},{"$f":"SUM(D32:D33)","v":{"v":-1165.39174,"d":"(1,165)"}}]
[null,"Imobilizado de uso",{"$f":"-125527.7/1000","v":{"v":-125.5277,"d":"(126)"}},{"$f":"-774592.02/1000","v":{"v":-774.59202,"d":"(775)"}}]
[null,"Intangível",{"$f":"-377165.97/1000","v":{"v":-377.16596999999996,"d":"(377)"}},{"$f":"(-10880.52-379919.2)/1000","v":{"v":-390.79972000000004,"d":"(391)"}}]
[null,"Outros ativos",{"$f":"(2694817.35)/1000-1","v":{"v":2693.8173500000003,"d":"2,694"}},{"$f":"(256635.45+401.45+697716.07+108498.04+28272121.47+959776.61)/1000","v":{"v":30295.14909,"d":"30,295"}}]
[null,"Provisões para redução ao valor recuperável de ativos"]
[null,"Total",{"$f":"C14+C15+C22+C23+C27+C28+C29+C30+C31+C34+C35","v":{"v":204463.66848999998,"d":"204,464"}},{"$f":"D14+D15+D22+D23+D27+D28+D29+D30+D31+D34+D35","v":{"v":236312.98361999998,"d":"236,313"}}]
[null,null,"Valores do balanço patrimonial\nno final do período","Valores considerados para fins da regulamentação prudencial\nno final do período","Referência no balanço\ndo conglomerado"]
[null,"PASSIVO"]
[null,"Depósitos e demais instrumentos financeiros",{"$f":"SUM(C40:C45)","v":{"v":182607.51494,"d":"182,608"}},{"$f":"SUM(D40:D45)","v":{"v":182607.51494,"d":"182,608"}}]
[null,"Recursos de instituições financeiras"]
[null,"Recursos de clientes"]
[null,"Recursos de emissão de títulos",{"$f":"(182607514.94)/1000","v":{"v":182607.51494,"d":"182,608"}},{"$f":"(182607514.94)/1000","v":{"v":182607.51494,"d":"182,608"}}]
[null,"Dívidas subordinadas"]
[null,"Instrumentos financeiros derivativos"]
[null,"Outros passivos financeiros"]
[null,"Provisões",{"$f":"SUM(C47:C48)","v":0},{"$f":"SUM(D47:D48)","v":0}]
[null,"Provisões técnicas de seguros e previdência"]
[null,"Outras provisões"]
[null,"Obrigações fiscais diferidas"]
[null,"Outros passivos",{"$f":"(3512054.46+144565.76)/1000-1","v":{"v":3655.62022,"d":"3,656"}},{"$f":"(188189506.8-182607514.94)/1000","v":{"v":5581.991860000015,"d":"5,582"}}]
[null,"Total do passivo",{"$f":"C39+C45+C49+C50","v":{"v":186263.13516,"d":"186,263"}},{"$f":"D39+D46+D49+D50","v":{"v":188189.5068,"d":"188,190"}}]
[null,"Patrimônio líquido",{"$f":"SUM(C53:C59)","v":{"v":18200.53333,"d":"18,201"}},{"$f":"SUM(D53:D59)","v":{"v":48123.47683000001,"d":"48,123"}}]
[null,"Capital social",{"$f":"20000000/1000","v":{"v":20000,"d":"20,000"}},{"$f":"24500000/1000","v":{"v":24500,"d":"24,500"}},"(a)"]
[null,"do qual: montante elegível para Capital Principal"]
[null,"do qual: montante elegível para Capital Complementar"]
[null,"Reserva de Capital",null,{"$f":"381971.88/1000","v":{"v":381.97188,"d":"382"}},"(d)"]
[null,"Reservas de lucros",0,{"$f":"9750773.64/1000","v":{"v":9750.773640000001,"d":"9,751"}}," (b)"]
[null,"Outros resultados abrangentes",null,null,"(e)"]
[null,"Lucros ou prejuízos acumulados",{"$f":"-1799466.67/1000","v":{"v":-1799.46667,"d":"(1,799)"}},{"$f":"13490731.31/1000","v":{"v":13490.731310000001,"d":"13,491"}}]
[null,"Ações em Tesouraria"]
[null,"Patrimônio líquido atribuído aos acionistas controladores"]
[null,"Participação minoritária nas controladas autorizadas pelo Bacen"]
[null,"Total do patrimônio líquido",{"$f":"C52+C61+C62","v":{"v":18200.53333,"d":"18,201"}},{"$f":"D52+D61+D62","v":{"v":48123.47683000001,"d":"48,123"}}]
[null,"Total do passivo e patrimônio líquido",{"$f":"C51+C63","v":{"v":204463.66849,"d":"204,464"}},{"$f":"D51+D63","v":{"v":236312.98363,"d":"236,313"}}]
[{"$nulls":3},{"$f":"D64-D36","v":{"v":1.0000017937272787E-5,"d":"0"}}]
[null,null,"Valores considerados para fins da regulamentação prudencial\nno final do período","Referência no balanço\ndo conglomerado"]
[null,"R$ milhões\n\nContas de compensação"]
[null,"Participação superiores a 10% do Cap. Social de Entidades Controladas não Sujeitas à Autorização do Bacen",0]
[null,"Créditos tributários de diferença temporária",{"$f":"4257796.46/1000","v":{"v":4257.79646,"d":"4,258"}}]
[null,"Créditos tributários de prejuízo fiscal acumulado",null," (f)"]

{"sheet":"Plan2","index":4,"n_rows":0,"n_cols":0,"rows_kept":0,"hidden":true}

{"sheet":"BP Prudencial","index":5,"n_rows":283,"n_cols":26,"rows_kept":283,"hidden":true,"merged":[[1,1,1,19],[3,1,3,19],[5,1,5,19],[7,1,7,19],[9,12,9,19],[11,12,11,14],[11,17,11,19],[75,1,75,19],[77,1,77,19],[79,1,79,19],[81,1,81,19],[83,12,83,19],[85,12,85,14],[85,17,85,19],[142,1,142,19],[144,1,144,19],[146,1,146,19],[148,10,148,19],[150,12,150,14],[150,17,150,19],[193,1,193,20],[195,10,195,19],[197,12,197,14],[197,17,197,19],[209,1,209,19],[211,1,211,19],[213,1,213,19],[214,1,214,14],[215,10,215,19],[217,12,217,14],[217,17,217,19],[274,1,274,7]]}
[]
[null,"SINOSSERRA FINANCEIRA S/A – SOCIEDADE DE CRÉDITO, FINANCIAMENTO E INVESTIMENTO"]
[]
[null,"Novo Hamburgo - RS"]
[]
[null,"Balanço Patrimonial "]
[]
[null,"Ativo"]
[]
[{"$nulls":12},"Em Milhares de Reais"]
[]
[{"$nulls":12},"Líder",{"$nulls":4},"Prudencial"]
[{"$nulls":12},"30 de",null,"31 de",null,null,"30 de",null,"31 de"]
[{"$nulls":12},"Junho",null,"Dezembro",null,null,"Junho",null,"Dezembro",{"$nulls":5},"Variação DFC <>"]
[{"$nulls":8},"Nota",{"$nulls":3},"de 2022",null,"de 2021",null,null,"de 2022",null,"de 2021"]
[]
["Circulante","Circulante",{"$nulls":10},{"v":54118,"d":"54,118"},null,{"v":112711,"d":"112,711"},null,null,{"v":70612,"d":"70,612"},null,{"v":135666,"d":"135,666"}]
[]
["Disponibilidades",null,null,"Disponibilidades",{"$nulls":8},138,null,681,null,null,168,null,696,{"$nulls":5},543]
[]
[null,null,"Títulos e Valores Mobiliários e Instrumentos Financeiros Derivativos",{"$nulls":9},{"v":13282,"d":"13,282"},null,{"v":66303,"d":"66,303"},null,null,{"v":27450,"d":"27,450"},null,{"v":87356,"d":"87,356"},{"$nulls":5},{"v":53021,"d":"53,021"}]
[]
["Carteira Própria",null,null,"Carteira Própria",{"$nulls":8},{"v":13282,"d":"13,282"},null,{"v":66303,"d":"66,303"},null,null,{"v":27450,"d":"27,450"},null,{"v":87356,"d":"87,356"}]
[]
[null,null,"Operações de Crédito",{"$nulls":9},{"v":37810,"d":"37,810"},null,{"v":43428,"d":"43,428"},null,null,{"v":37810,"d":"37,810"},null,{"v":43428,"d":"43,428"}]
[]
["Setor Privado",null,null,"Setor Privado",{"$nulls":8},{"v":41107,"d":"41,107"},null,{"v":46412,"d":"46,412"},null,null,{"v":41107,"d":"41,107"},null,{"v":46412,"d":"46,412"},{"$nulls":5},{"v":5305,"d":"5,305"}]
["(-) Provisão p/Créditos em Liquidação Duvidosa",null,null,"(-) Provisão p/Créditos em Liquidação Duvidosa",{"$nulls":8},{"v":-3297,"d":"(3,297)"},null,{"v":-2984,"d":"(2,984)"},null,null,{"v":-3297,"d":"(3,297)"},null,{"v":-2984,"d":"(2,984)"},{"$nulls":5},313]
[]
[null,null,"Outros Créditos",{"$nulls":9},{"v":2449,"d":"2,449"},null,{"v":2802,"d":"2,802"},null,null,{"v":4701,"d":"4,701"},null,{"v":3714,"d":"3,714"}]
[]
[{"$nulls":3},"Diversos",{"$nulls":8},{"v":2449,"d":"2,449"},null,{"v":1876,"d":"1,876"},null,null,{"v":4701,"d":"4,701"},null,{"v":3714,"d":"3,714"},{"$nulls":5},{"v":-573,"d":"(573)"}]
[]
["Serviços Prestados a Receber",{"$nulls":3},"Rendas a Receber",{"$nulls":7},0,null,0,null,null,114,null,93]
["Créditos Tributários",{"$nulls":3},"Créditos Tributários",{"$nulls":7},{"v":1824,"d":"1,824"},null,{"v":1824,"d":"1,824"},null,null,{"v":2430,"d":"2,430"},null,{"v":2094,"d":"2,094"},{"$nulls":5},0]
["Devedores Diversos",{"$nulls":3},"Devedores Diversos - País",{"$nulls":7},567,null,4,null,null,{"v":2000,"d":"2,000"},null,{"v":1385,"d":"1,385"}]
["Outros",{"$nulls":3},"Outros",{"$nulls":7},58,null,48,null,null,157,null,142]
[]
[null,null,"Outros Valores e Bens",{"$nulls":9},439,null,423,null,null,483,null,472,{"$nulls":5},{"v":-16,"d":"(16)"}]
[]
["Outros valores e bens",null,null,"Outros valores e bens",{"$nulls":8},364,null,327,null,null,364,null,327]
["Despesas Antecipada",null,null,"Despesas Antecipada",{"$nulls":8},75,null,96,null,null,119,null,145]
[]
[null,"Realizável a Longo Prazo",{"$nulls":10},{"v":84699,"d":"84,699"},null,{"v":89209,"d":"89,209"},null,null,{"v":111998,"d":"111,998"},null,{"v":136408,"d":"136,408"}]
[]
[null,null,"Operações de Crédito",{"$nulls":9},{"v":84699,"d":"84,699"},null,{"v":88793,"d":"88,793"},null,null,{"v":84699,"d":"84,699"},null,{"v":88793,"d":"88,793"}]
[]
[{"$nulls":3},"Setor Privado",{"$nulls":8},{"v":85290,"d":"85,290"},null,{"v":89659,"d":"89,659"},null,null,{"v":85290,"d":"85,290"},null,{"v":89659,"d":"89,659"},{"$nulls":5},{"v":4369,"d":"4,369"}]
[{"$nulls":3},"(-) Provisão p/Créditos em Liquidação Duvidosa",{"$nulls":8},{"v":-591,"d":"(591)"},null,{"v":-866,"d":"(866)"},null,null,{"v":-591,"d":"(591)"},null,{"v":-866,"d":"(866)"},{"$nulls":5},{"v":-275,"d":"(275)"}]
[]
[]
[null,null,"Outros Créditos",{"$nulls":9},0,null,0,null,null,{"v":27299,"d":"27,299"},null,{"v":47615,"d":"47,615"}]
[]
["Créditos Tributários RLP",null,null,"Créditos Tributários",{"$nulls":8},0,null,0,null,null,269,null,292,{"$nulls":5},0]
["Diversos RLP",null,null,"Diversos",{"$nulls":8},0,null,0,null,null,{"v":27030,"d":"27,030"},null,{"v":47323,"d":"47,323"},{"$nulls":5},0]
[]
[null,null,"Investimentos",{"$nulls":9},0,null,0,null,null,{"v":4585,"d":"4,585"},null,{"v":4624,"d":"4,624"}]
[]
["Imóveis",null,null,"Imóveis",{"$nulls":8},0,null,0,null,null,{"v":4585,"d":"4,585"},null,{"v":4624,"d":"4,624"},{"$nulls":5},0]
[]
["Permanente","Permanente",{"$nulls":10},393,null,416,null,null,953,null,961]
[]
[null,null,"Imobilizado de Uso",{"$nulls":9},127,null,129,null,null,679,null,665]
[]
["Imobilizado em Uso",null,null,"Outras Imobilizações de Uso",{"$nulls":8},175,null,162,null,null,{"v":1363,"d":"1,363"},null,{"v":1284,"d":"1,284"},{"$nulls":5},{"v":-13,"d":"(13)"}]
["(-) Depreciação Acumulada",null,null,"(-) Depreciação Acumulada",{"$nulls":8},{"v":-48,"d":"(48)"},null,{"v":-33,"d":"(33)"},null,null,{"v":-684,"d":"(684)"},null,{"v":-619,"d":"(619)"},{"$nulls":5},15]
[]
[null,null,"Intangível",{"$nulls":9},266,null,287,null,null,274,null,296]
[]
["Intangível",null,null,"Ativos Intangíveis",{"$nulls":8},356,null,356,null,null,368,null,368,{"$nulls":5},0]
["(-) Amortização Acumulada",null,null,"(-) Amortização Acumulada",{"$nulls":8},{"v":-90,"d":"(90)"},null,{"v":-69,"d":"(69)"},null,null,{"v":-94,"d":"(94)"},null,{"v":-72,"d":"(72)"},{"$nulls":5},21]
[]
["Total  do  Ativo","Total  do  Ativo",{"$nulls":10},{"v":139210,"d":"139,210"},null,{"v":201920,"d":"201,920"},null,null,{"v":188148,"d":"188,148"},null,{"v":277659,"d":"277,659"}]
[]
[]
[null,"SINOSSERRA FINANCEIRA S/A – SOCIEDADE DE CRÉDITO, FINANCIAMENTO E INVESTIMENTO"]
[]
[null,"Novo Hamburgo - RS"]
[]
[null,"Passivo e Patrimônio Líquido"]
[]
[null,"Passivo"]
[]
[{"$nulls":12},"Em Milhares de Reais"]
[]
[{"$nulls":12},"Líder",{"$nulls":4},"Prudencial"]
[{"$nulls":12},"30 de",null,"31 de",null,null,"30 de",null,"31 de"]
[{"$nulls":12},"Junho",null,"Dezembro",null,null,"Junho",null,"Dezembro"]
[{"$nulls":12},"de 2022",null,"de 2021",null,null,"de 2022",null,"de 2021"]
[]
["Circulante","Circulante",{"$nulls":10},{"v":51871.27504,"d":"51,871"},null,{"v":111418,"d":"111,418"},null,null,{"v":82112.27504000001,"d":"82,112"},null,{"v":151317,"d":"151,317"}]
[]
[null,null,"Depósitos",{"$nulls":9},{"v":19405,"d":"19,405"},null,{"v":41664,"d":"41,664"},null,null,{"v":19405,"d":"19,405"},null,{"v":41664,"d":"41,664"},{"$nulls":5},{"v":-22259,"d":"(22,259)"}]
[]
["Depósito Interfinanceiro",null,null,"Depósito Interfinanceiro",{"$nulls":8},{"v":10783,"d":"10,783"},null,{"v":12996,"d":"12,996"},null,null,{"v":10783,"d":"10,783"},null,{"v":12996,"d":"12,996"}]
["Depósitos a prazo",null,null,"Depósitos a prazo ",{"$nulls":8},{"v":8622,"d":"8,622"},null,{"v":28668,"d":"28,668"},null,null,{"v":8622,"d":"8,622"},null,{"v":28668,"d":"28,668"}]
[]
[null,null,"Recurso de aceite cambial e emissão de títulos",{"$nulls":9},{"v":30674,"d":"30,674"},null,{"v":60578,"d":"60,578"},null,null,{"v":30674,"d":"30,674"},null,{"v":60578,"d":"60,578"},{"$nulls":5},{"v":-29904,"d":"(29,904)"}]
[]
[{"$nulls":3},"Recurso de aceite cambial",{"$nulls":8},{"v":30674,"d":"30,674"},null,{"v":60578,"d":"60,578"},null,null,{"v":30674,"d":"30,674"},null,{"v":60578,"d":"60,578"}]
[{"$nulls":3},"Recurso de letras financeiras",{"$nulls":13},0,null,0]
[]
[null,null,"Outras Obrigações",{"$nulls":9},{"v":1792.27504,"d":"1,792"},null,{"v":9176,"d":"9,176"},null,null,{"v":32033.27504,"d":"32,033"},null,{"v":49075,"d":"49,075"},{"$nulls":5},{"v":-7383.72496,"d":"(7,384)"}]
[]
["Cobrança e Arrecadação de Tributos e Assemelhados",null,null,"Cobrança e Arrecadação de Tributos e Assemelhados",{"$nulls":8},75,null,{"v":5022,"d":"5,022"},null,null,75,null,{"v":5022,"d":"5,022"}]
["Sociais e Estatutárias",null,null,"Sociais e Estatutárias",{"$nulls":8},0,null,803,null,null,404,null,{"v":1097,"d":"1,097"}]
["Fiscais e Previdenciárias - CP",null,null,"Fiscais e Previdenciárias",{"$nulls":8},119,null,{"v":1857,"d":"1,857"},null,null,635,null,{"v":2271,"d":"2,271"}]
["Passivo - Diversas CP",null,null,"Diversas",{"$nulls":8},{"v":1598.27504,"d":"1,598"},null,{"v":1494,"d":"1,494"},null,null,{"v":30919.27504,"d":"30,919"},null,{"v":40685,"d":"40,685"}]
[]
["Exigível a Longo Prazo","Exigível a Longo Prazo",{"$nulls":10},{"v":73542.72496,"d":"73,543"},null,{"v":90502,"d":"90,502"},null,null,{"v":73715.72496,"d":"73,716"},null,{"v":90950,"d":"90,950"}]
[]
[null,null,"Depósitos",{"$nulls":9},{"v":51998,"d":"51,998"},null,{"v":47449,"d":"47,449"},null,null,{"v":51998,"d":"51,998"},null,{"v":47449,"d":"47,449"},{"$nulls":5},{"v":4549,"d":"4,549"}]
[]
[{"$nulls":3},"Depósito Interfinanceiro",{"$nulls":8},0,null,{"v":2512,"d":"2,512"},null,null,0,null,{"v":2512,"d":"2,512"}]
[{"$nulls":3},"Depósitos a prazo ",{"$nulls":8},{"v":51998,"d":"51,998"},null,{"v":44937,"d":"44,937"},null,null,{"v":51998,"d":"51,998"},null,{"v":44937,"d":"44,937"}]
[]
[null,null,"Recurso de aceite cambial e emissão de títulos",{"$nulls":9},{"v":21021,"d":"21,021"},null,{"v":25697,"d":"25,697"},null,null,{"v":21021,"d":"21,021"},null,{"v":25697,"d":"25,697"},{"$nulls":5},{"v":-4676,"d":"(4,676)"}]
[]
[{"$nulls":3},"Recurso de aceite cambial",{"$nulls":8},{"v":15638,"d":"15,638"},null,{"v":20679,"d":"20,679"},null,null,{"v":15638,"d":"15,638"},null,{"v":20679,"d":"20,679"}]
[{"$nulls":3},"Recurso de letras financeiras",{"$nulls":8},{"v":5383,"d":"5,383"},null,{"v":5018,"d":"5,018"},null,null,{"v":5383,"d":"5,383"},null,{"v":5018,"d":"5,018"}]
[]
[null,null,"Outras Obrigações",{"$nulls":9},0,null,0,null,null,173,null,{"v":17571,"d":"17,571"},{"$nulls":5},0]
[]
["Créditos Tributários Passivo",null,null,"Créditos Tributários",{"$nulls":8},0,null,0,null,null,173,null,187]
["Diversas",null,null,"Diversos",{"$nulls":8},0,null,0,null,null,0,null,{"v":17384,"d":"17,384"}]
[]
[]
[null,null,"Resultado de exercício futuro",{"$nulls":9},{"v":523.72496,"d":"524"},null,233,null,null,{"v":523.72496,"d":"524"},null,233]
[]
["Passivo - Diversas LP",null,null,"Resultado de exercício futuro",{"$nulls":8},{"v":523.72496,"d":"524"},null,233,null,null,{"v":523.72496,"d":"524"},null,233,{"$nulls":5},{"v":290.72496,"d":"291"}]
[]
["Patrimônio Líquido","Patrimônio Líquido",{"$nulls":10},{"v":13796,"d":"13,796"},null,{"v":17123,"d":"17,123"},null,null,{"v":32320,"d":"32,320"},null,{"v":35392,"d":"35,392"},{"$nulls":5},{"v":-3327,"d":"(3,327)"}]
[]
[null,null,"Capital"]
["Capital",null,null,"De Domiciliados no País",{"$nulls":8},{"v":11000,"d":"11,000"},null,{"v":11000,"d":"11,000"},null,null,{"v":11000,"d":"11,000"},null,{"v":11000,"d":"11,000"},{"$nulls":5},0]
["Reserva de Lucros",null,"Reservas de Lucros",{"$nulls":9},{"v":2796,"d":"2,796"},null,{"v":6123,"d":"6,123"},null,null,{"v":2796,"d":"2,796"},null,{"v":6123,"d":"6,123"},{"$nulls":5},{"v":-3327,"d":"(3,327)"}]
[]
[null,null,"Participação de Não Controladores",{"$nulls":9},0,null,0,null,null,{"v":18524,"d":"18,524"},null,{"v":18269,"d":"18,269"}]
[]
["Total  do  Passivo","Total  do  Passivo",{"$nulls":10},{"v":139210,"d":"139,210"},null,{"v":201920,"d":"201,920"},null,null,{"v":188148,"d":"188,148"},null,{"v":277659,"d":"277,659"}]
[]
[{"$nulls":19},7]
[null,"SINOSSERRA FINANCEIRA S/A – SOCIEDADE DE CRÉDITO, FINANCIAMENTO E INVESTIMENTO"]
[]
[null,"Novo Hamburgo - RS"]
[]
[null,"Demonstração do Resultado"]
[]
[{"$nulls":10},"Em Milhares de Reais",{"$nulls":14},"DRE"]
[]
[{"$nulls":12},"Líder",{"$nulls":4},"Prudencial"]
[{"$nulls":12},"30 de",null,"30 de",null,null,"30 de",null,"30 de",{"$nulls":5},"30 de"]
[{"$nulls":12},"Junho",null,"Junho",null,null,"Junho",null,"Junho",{"$nulls":5},"Junho"]
[{"$nulls":12},"de 2022",null,"de 2021",null,null,"de 2022",null,"de 2021",{"$nulls":5},"de 2022"]
[]
[null,"Receitas de Intermediação Financeira",{"$nulls":10},{"v":12003,"d":"12,003"},null,{"v":9858,"d":"9,858"},null,null,{"v":13122,"d":"13,122"},null,{"v":10085,"d":"10,085"}]
[]
["Operações de Crédito",null,"Operações de Crédito",{"$nulls":9},{"v":12559,"d":"12,559"},null,{"v":9680,"d":"9,680"},null,null,{"v":12559,"d":"12,559"},null,{"v":9680,"d":"9,680"}]
["Resultado de Operações com Títulos e Valores Mobiliários",null,"Resultado de Operações com Títulos e Valores Mobiliários",{"$nulls":9},{"v":-556,"d":"(556)"},null,178,null,null,563,null,405]
[]
[null,"Despesas da Intermediação Financeira",{"$nulls":10},{"v":-9433,"d":"(9,433)"},null,{"v":-4212,"d":"(4,212)"},null,null,{"v":-9433,"d":"(9,433)"},null,{"v":-4212,"d":"(4,212)"}]
[]
["Operações de Captação no Mercado",null,"Operações de captações de mercado",{"$nulls":9},{"v":-10538,"d":"(10,538)"},null,{"v":-3117,"d":"(3,117)"},null,null,{"v":-10538,"d":"(10,538)"},null,{"v":-3117,"d":"(3,117)"}]
["Provisão para Créditos de Liquidação Duvidosa",null,"Provisão para Créditos de Liquidação Duvidosa",{"$nulls":9},{"v":1105,"d":"1,105"},null,{"v":-1095,"d":"(1,095)"},null,null,{"v":1105,"d":"1,105"},null,{"v":-1095,"d":"(1,095)"}]
[]
[null,"Resultado Bruto da Intermediação Financeira",{"$nulls":10},{"v":2570,"d":"2,570"},null,{"v":5646,"d":"5,646"},null,null,{"v":3689,"d":"3,689"},null,{"v":5873,"d":"5,873"}]
[]
[null,"Outras Despesas/Receitas Operacionais",{"$nulls":10},{"v":-5874,"d":"(5,874)"},null,{"v":-3597,"d":"(3,597)"},null,null,{"v":-6644,"d":"(6,644)"},null,{"v":-1374,"d":"(1,374)"}]
[]
["Receitas de Prestação de Serviços",null,"Receitas de Prestação de Serviços",{"$nulls":9},{"v":2044,"d":"2,044"},null,{"v":1588,"d":"1,588"},null,null,{"v":11452,"d":"11,452"},null,{"v":11545,"d":"11,545"}]
["Despesas de Pessoal",null,"Despesas de Pessoal",{"$nulls":9},{"v":-1150,"d":"(1,150)"},null,{"v":-576,"d":"(576)"},null,null,{"v":-3370,"d":"(3,370)"},null,{"v":-2670,"d":"(2,670)"}]
["Outras Despesas Administrativas",null,"Outras Despesas Administrativas",{"$nulls":9},{"v":-7225,"d":"(7,225)"},null,{"v":-3764,"d":"(3,764)"},null,null,{"v":-12935,"d":"(12,935)"},null,{"v":-8737,"d":"(8,737)"}]
["Despesas Tributárias",null,"Despesas Tributárias",{"$nulls":9},{"v":-523,"d":"(523)"},null,{"v":-468,"d":"(468)"},null,null,{"v":-1987,"d":"(1,987)"},null,{"v":-1997,"d":"(1,997)"}]
["Outras Receitas/(Despesas)","Outras Receitas/(Despesas)","Outras Despesas/Receitas Operacionais",{"$nulls":9},980,null,{"v":-377,"d":"(377)"},null,null,196,null,485]
[]
[null,"Resultado Operacional",{"$nulls":10},{"v":-3304,"d":"(3,304)"},null,{"v":2049,"d":"2,049"},null,null,{"v":-2955,"d":"(2,955)"},null,{"v":4499,"d":"4,499"}]
[]
["Receitas não operacionais","Receitas não operacionais",{"$nulls":10},0,null,86,null,null,19,null,157]
[]
[null,"Resultado Antes da Tributação s/Lucro"]
[null,"e Participações",{"$nulls":10},{"v":-3304,"d":"(3,304)"},null,{"v":2135,"d":"2,135"},null,null,{"v":-2936,"d":"(2,936)"},null,{"v":4656,"d":"4,656"}]
[]
[null,"Imposto de renda e contribuição social",{"$nulls":10},0,null,{"v":-1162,"d":"(1,162)"},null,null,{"v":-113,"d":"(113)"},null,{"v":-1991,"d":"(1,991)"}]
[]
["Imposto de Renda e Contribuição Social - Corrente","Imposto de Renda e Contribuição Social - Corrente",{"$nulls":10},0,null,{"v":-714,"d":"(714)"},null,null,{"v":-113,"d":"(113)"},null,{"v":-1543,"d":"(1,543)"}]
["Imposto de Renda e Contribuição Social - Diferido","Imposto de Renda e Contribuição Social - Diferido",{"$nulls":10},0,null,{"v":-448,"d":"(448)"},null,null,0,null,{"v":-448,"d":"(448)"}]
[]
["Participação do Resultado","Participação do Resultado",{"$nulls":10},{"v":-23,"d":"(23)"},null,{"v":-5,"d":"(5)"},null,null,{"v":-23,"d":"(23)"},null,{"v":-5,"d":"(5)"}]
[]
[null,"Lucro Líquido do Período",{"$nulls":10},{"v":-3327,"d":"(3,327)"},null,968,null,null,{"v":-3072,"d":"(3,072)"},null,{"v":2660,"d":"2,660"}]
[]
[null,null,"Lucro por Lote de 1.000 Ações",{"$nulls":9},{"v":-0.3024545454545455,"d":"(0.30)"},null,{"v":0.088,"d":"0.09"},null,null,{"v":-0.19819354838709677,"d":"(0.20)"},null,{"v":0.17161290322580644,"d":"0.17"}]
[]
[null,"Demonstração do Resultado Abrangente"]
[]
[{"$nulls":10},"Em Milhares de Reais"]
[]
[{"$nulls":12},"Líder",{"$nulls":4},"Prudencial"]
[{"$nulls":12},"30 de",null,"30 de",null,null,"30 de",null,"30 de"]
[{"$nulls":10},"2° Semestre",null,"Junho",null,"Junho",null,null,"Junho",null,"Junho"]
[{"$nulls":10},"1905-07-13",null,"de 2022",null,"de 2021",null,null,"de 2022",null,"de 2021"]
[]
[null,"Outros Resultados Abrangentes que serão reclassificados para o resultado do período:",{"$nulls":10},{"v":-3327,"d":"(3,327)"},null,968,null,null,{"v":-3072,"d":"(3,072)"},null,{"v":2660,"d":"2,660"}]
[]
[null,null,"Movimentação do Período",{"$nulls":7},0,null,0,null,0,null,null,0,null,0]
[]
[null,"Resultado Abrangente do Período",{"$nulls":10},{"v":-3327,"d":"(3,327)"},null,968,null,null,{"v":-3072,"d":"(3,072)"},null,{"v":2660,"d":"2,660"}]
[]
[{"$nulls":19},9]
[null,"SINOSSERRA FINANCEIRA S/A – SOCIEDADE DE CRÉDITO, FINANCIAMENTO E INVESTIMENTO"]
[]
[null,"Novo Hamburgo - RS"]
[]
[null,"Demonstração dos Fluxos (Método Indireto) de Caixa "]
[]
[{"$nulls":10},"Em Milhares de Reais"]
[]
[{"$nulls":12},"Líder",{"$nulls":4},"Prudencial"]
[{"$nulls":12},"30 de",null,"30 de",null,null,"30 de",null,"30 de"]
[{"$nulls":10},"2° Semestre",null,"Junho",null,"Junho",null,null,"Junho",null,"Junho"]
[{"$nulls":10},"de 2021",null,"de 2022",null,"de 2021",null,null,"de 2022",null,"de 2021"]
[]
[null,"Fluxos de Caixa das Atividades Operacionais"]
[null,null,"Lucro Líquido antes do Imposto de Renda e Contribuição Social",{"$nulls":9},{"v":-3304,"d":"(3,304)"},null,{"v":2135,"d":"2,135"},null,null,{"v":-2936,"d":"(2,936)"},null,{"v":4656,"d":"4,656"}]
[{"$nulls":3},"Provisão para Perdas com Créditos de Liquidação Duvidosa",{"$nulls":8},38,null,{"v":293.79743999999994,"d":"294"},null,null,38,null,{"v":293.79743999999994,"d":"294"}]
[{"$nulls":3},"Participação nos Resultado",{"$nulls":8},{"v":-23,"d":"(23)"},null,{"v":-5,"d":"(5)"},null,null,{"v":-23,"d":"(23)"},null,{"v":-5,"d":"(5)"}]
["Depreciações e Amortizações",null,null,"Depreciações e Amortizações",{"$nulls":8},36,null,10,null,null,88,null,43]
["Baixa Investimentos",null,null,"Baixa Investimentos",{"$nulls":8},0,null,0,null,null,174,null,120]
["Baixas Imobilizado",null,null,"Baixas Imobilizado",{"$nulls":8},0,null,0,null,null,0,null,39]
["Provisão para Contingências Trabalhistas",null,null,"Provisão para Contingências Trabalhistas",{"$nulls":8},0,null,0,null,null,{"v":-68,"d":"(68)"},null,{"v":-236,"d":"(236)"}]
["Imposto Diferido a Compensar",null,null,"Imposto Diferido a Compensar",{"$nulls":8},0,null,0,null,null,23,null,{"v":-65,"d":"(65)"}]
["Provisão para Impostos Diferidos",null,null,"Provisão para Impostos Diferidos",{"$nulls":8},0,null,0,null,null,{"v":-14,"d":"(14)"},null,{"v":-13,"d":"(13)"}]
[]
[{"$nulls":12},{"v":-3253,"d":"(3,253)"},null,{"v":2433.79744,"d":"2,434"},null,null,{"v":-2718,"d":"(2,718)"},null,{"v":4832.79744,"d":"4,833"}]
[]
[null,null,"IR e CS Pagos",{"$nulls":9},0,null,{"v":-1293,"d":"(1,293)"},null,null,{"v":-113,"d":"(113)"},null,{"v":-2122,"d":"(2,122)"}]
[]
[null,"(Aumento)/Redução dos Ativos"]
["Títulos e Valores Mobiliários",null,null,"Títulos e Valores Mobiliários",{"$nulls":8},{"v":53021,"d":"53,021"},null,{"v":8703,"d":"8,703"},null,null,{"v":64072,"d":"64,072"},null,{"v":8703,"d":"8,703"}]
[{"$nulls":3},"Operações de Crédito",{"$nulls":8},{"v":9674,"d":"9,674"},null,{"v":-13443,"d":"(13,443)"},null,null,{"v":9674,"d":"9,674"},null,{"v":-13443,"d":"(13,443)"}]
["Rendas a Receber",null,null,"Rendas a Receber",{"$nulls":8},0,null,0,null,null,{"v":-21,"d":"(21)"},null,156]
["Créditos Tributários",null,null,"Créditos Tributários",{"$nulls":8},0,null,0,null,null,{"v":-335,"d":"(335)"},null,189]
["Diversos",null,null,"Diversos",{"$nulls":8},0,null,0,null,null,{"v":2857,"d":"2,857"},null,{"v":1472,"d":"1,472"}]
["Despesas Antecipada",null,null,"Despesas Antecipadas",{"$nulls":8},0,null,0,null,null,5,null,{"v":-19,"d":"(19)"}]
["Outros Créditos",null,null,"Outros Créditos",{"$nulls":8},{"v":-573,"d":"(573)"},null,835,null,null,{"v":-578,"d":"(578)"},null,853]
[{"$nulls":3},"Outros Valores e Bens",{"$nulls":8},{"v":-16,"d":"(16)"},null,{"v":-156,"d":"(156)"},null,null,{"v":-16,"d":"(16)"},null,{"v":-156,"d":"(156)"}]
[]
[null,"Aumento/(Redução) dos Passivos"]
[{"$nulls":3},"Depósitos",{"$nulls":8},{"v":-17710,"d":"(17,710)"},null,{"v":-3194,"d":"(3,194)"},null,null,{"v":-17710,"d":"(17,710)"},null,{"v":-3194,"d":"(3,194)"}]
[{"$nulls":3},"Recurso de aceite cambial e emissão de títulos",{"$nulls":8},{"v":-34580,"d":"(34,580)"},null,{"v":7026,"d":"7,026"},null,null,{"v":-34580,"d":"(34,580)"},null,{"v":7026,"d":"7,026"}]
["Fiscais e Previdenciárias",null,null,"Fiscais e Previdenciárias",{"$nulls":8},0,null,0,null,null,102,null,{"v":-39,"d":"(39)"}]
["Sociais e Estatutárias",null,null,"Sociais e Estatutárias",{"$nulls":8},0,null,0,null,null,109,null,114]
["Diversas",null,null,"Diversas",{"$nulls":8},0,null,0,null,null,{"v":-9802,"d":"(9,802)"},null,{"v":-341,"d":"(341)"}]
[{"$nulls":3},"Outras Obrigações",{"$nulls":8},{"v":-7093,"d":"(7,093)"},null,{"v":-952,"d":"(952)"},null,null,{"v":-7093,"d":"(7,093)"},null,{"v":-952,"d":"(952)"}]
[]
[null,"Caixa Liquido Proveniente das Atividades Operacionais"]
[{"$nulls":12},{"v":-530,"d":"(530)"},null,{"v":-40.20255999999972,"d":"(40)"},null,null,{"v":3853,"d":"3,853"},null,{"v":3079.7974400000003,"d":"3,080"}]
[null,"Fluxos de Caixa das Atividades de Investimento"]
[]
["Aquisição de Imobilizado de Uso",null,"Aquisição de Imobilizado de Uso",{"$nulls":9},{"v":-13,"d":"(13)"},null,{"v":-19,"d":"(19)"},null,null,{"v":-80,"d":"(80)"},null,{"v":-74,"d":"(74)"}]
["Aquisição de Investimentos",null,"Aquisição de Investimentos",{"$nulls":9},0,null,0,null,null,{"v":-135,"d":"(135)"},null,{"v":-120,"d":"(120)"}]
[]
[null,"Caixa Líquido Utilizado nas Atividades de Investimento"]
[{"$nulls":12},{"v":-13,"d":"(13)"},null,{"v":-19,"d":"(19)"},null,null,{"v":-215,"d":"(215)"},null,{"v":-194,"d":"(194)"}]
[null,"Fluxos de Caixa das Atividades de Financiamento"]
[]
["Dividendos Propostos/Pagar ",null,"Dividendos Propostos/Pagar ",{"$nulls":9},0,null,0,null,null,0,null,{"v":-570,"d":"(570)"}]
[null,null,"Dividendos Distribuídos "]
[null,null,"Dividendos Adicionais - Exercício de 2019"]
[null,null,"Juros s/ Capital Próprio Pagos"]
[null,null,"Efeito tributário dos Juros s/Capital Próprio"]
[]
[null,"Caixa Líquido Utilizado nas Atividades de Financiamento",{"$nulls":10},0,null,0,null,null,0,null,{"v":-570,"d":"(570)"}]
[]
[null,"Aumento/(Redução) de Caixa e Equivalentes de Caixa",{"$nulls":8},0,null,{"v":-543,"d":"(543)"},null,{"v":-59,"d":"(59)"},null,null,{"v":3638,"d":"3,638"},null,{"v":2316,"d":"2,316"}]
[]
[null,null,"Caixa e Equivalentes de Caixa no Início do Período",{"$nulls":7},{"v":17258,"d":"17,258"},null,681,null,642,null,null,{"v":10698,"d":"10,698"},null,{"v":16379,"d":"16,379"}]
[null,null,"Caixa e Equivalentes de Caixa no Final do Período",{"$nulls":7},{"v":25662,"d":"25,662"},null,138,null,583,null,null,{"v":14336,"d":"14,336"},null,{"v":18695,"d":"18,695"}]
[]
[{"$nulls":10},"Check DFC"]
[{"$nulls":7},"Variação caixa",null,null,{"v":8404,"d":"8,404"},null,{"v":-543,"d":"(543)"},null,{"v":-59.20255999999972,"d":"(59)"},null,null,{"v":3638,"d":"3,638"},null,{"v":2315.7974400000003,"d":"2,316"}]
[{"$nulls":7},"Movimentação",null,null,0,null,{"v":-543,"d":"(543)"},null,{"v":-59,"d":"(59)"},null,null,{"v":3638,"d":"3,638"},null,{"v":2316,"d":"2,316"}]
[{"$nulls":7},"Variação caixa - mov.",null,null,{"v":-8404,"d":"-8,404"},null,0,0,{"v":-0.20255999999972119,"d":"(0)"},null,null,0,0,{"v":-0.20255999999972119,"d":"(0)"}]

{"sheet":"PL Adm","index":6,"n_rows":5,"n_cols":5,"rows_kept":5,"hidden":true}
["Patrimônio Líquido",{"$nulls":3},{"$f":"SUM(E2:E5)","v":18524}]
[null,"Capital Social",null,null,4500]
[null,"Reserva de Capital",null,null,510]
[null,"Reservas de Lucros",null,null,13642]
[null,"Ações em Tesouraria",null,null,-128]